bitfinex-derivatives/quotes_ETHF0:USTF0_20260113
["timestamp","ask_amount","ask_price","bid_price","bid_amount"]
[1768300429320,0.1416679,3140.6,3139.7,1.08359621]
[1768300429520,1.48481401,3140.5,3139.7,1.08359621]
[1768300429720,1.08359621,3140.5,3139.7,1.08359621]
[1768300430721,1.08359621,3140.3,3139.6,0.00393338]
[1768300430918,1.08359621,3139.9,3139.0,1.08359621]
[1768300432015,1.08359621,3139.9,3139.0,1.08706826]
[1768300432313,1.08359621,3139.9,3139.2,1.08359621]
[1768300433323,0.1416679,3140.1,3139.0,0.00347205]
[1768300441018,0.1416679,3140.1,3139.1,1.08371708]
[1768300442130,0.15937,3140.4,3139.3,1.08371708]
[1768300442327,0.95985337,3140.3,3139.5,1.08371708]
[1768300442528,0.95985337,3140.2,3139.5,1.08371708]
[1768300442825,0.95985337,3140.1,3139.5,1.08371708]
[1768300443028,1.282,3140.8,3139.5,1.08371708]
[1768300443228,1.50287387,3140.7,3139.3,1.08371708]
[1768300443422,1.36120597,3140.6,3139.3,1.08371708]
[1768300443621,1.36120597,3140.5,3139.3,1.08371708]
[1768300443822,0.95990273,3140.4,3139.3,1.08371708]
[1768300444021,0.95990273,3140.3,3139.3,1.08371708]
[1768300444222,0.95990273,3140.2,3139.3,1.08371708]
[1768300444422,0.95990273,3140.1,3139.3,1.08371708]
[1768300444730,0.1416679,3140.7,3139.0,0.14315799]
[1768300444928,1.49391419,3140.6,3139.4,1.08371708]
[1768300445129,1.3613329,3140.5,3139.4,1.08371708]
[1768300445330,1.3613329,3140.4,3139.4,1.08371708]
[1768300445534,0.95999194,3140.3,3139.4,1.08371708]
[1768300445725,0.95999194,3140.2,3139.4,1.08371708]
[1768300445924,0.95999194,3140.1,3139.4,1.08371708]
[1768300446122,0.13258129,3140.6,3139.4,1.08371708]
[1768300446321,1.36475206,3140.5,3139.4,1.08371708]
[1768300446523,1.36475206,3140.4,3139.4,1.08371708]
[1768300446722,0.96336548,3140.3,3139.4,1.08371708]
[1768300447024,0.96336548,3140.2,3139.4,1.08371708]
[1768300447223,0.96336548,3140.1,3139.4,1.08371708]
[1768300447423,0.96336548,3140.0,3139.4,1.08371708]
[1768300447629,0.13258129,3140.6,3139.4,1.08371708]
[1768300447928,1.36486355,3140.5,3139.4,1.08371708]
[1768300448129,1.36486355,3140.4,3139.4,1.08371708]
[1768300448332,0.96344975,3140.3,3139.4,1.08371708]
[1768300448528,0.96344975,3140.2,3139.4,1.08371708]
[1768300448728,0.96344975,3140.1,3139.4,1.08371708]
[1768300448922,0.96344975,3140.0,3139.4,1.08371708]
[1768300449124,0.13258129,3140.6,3139.4,1.08371708]
[1768300449323,1.36511172,3140.5,3139.4,1.08371708]
[1768300449532,1.36511172,3140.4,3139.4,1.08371708]
[1768300449735,0.96361954,3140.3,3139.4,1.08371708]
[1768300450033,0.96361954,3140.2,3139.4,1.08371708]
[1768300450225,0.96361954,3140.1,3139.4,1.08371708]
[1768300450422,0.96361954,3140.0,3139.4,1.08371708]
[1768300450623,0.13258129,3140.6,3139.4,1.08371708]
[1768300450823,1.36520372,3140.5,3139.4,1.08371708]
[1768300451025,1.36520372,3140.4,3139.4,1.08371708]
[1768300451225,0.96368948,3140.3,3139.4,1.08371708]
[1768300451428,0.96368948,3140.2,3139.4,1.08371708]
[1768300451728,0.96368948,3140.1,3139.4,1.08371708]
[1768300451928,0.96368948,3140.0,3139.4,1.08371708]
[1768300452131,0.13258129,3140.6,3139.4,1.08371708]
[1768300452324,1.36538195,3140.5,3139.4,1.08371708]
[1768300452525,1.21629837,3140.3,3139.0,0.00347205]
[1768300452730,0.13258129,3140.1,3139.0,0.00347205]
[1768300452930,0.96381093,3140.0,3139.0,0.00347205]
[1768300453735,0.96381093,3140.0,3139.0,1.08718913]
[1768300456038,0.96381093,3140.0,3139.2,1.08371708]
[1768300456336,0.13299054,3140.5,3139.2,1.08371708]
[1768300456525,1.36531392,3140.4,3139.2,1.08371708]
[1768300456727,0.96376755,3140.3,3139.2,1.08371708]
[1768300456929,0.96376755,3140.2,3139.2,1.08371708]
[1768300457129,0.96376755,3140.1,3139.2,1.08371708]
[1768300457331,0.96376755,3140.0,3139.2,1.08371708]
[1768300457634,0.13299054,3140.5,3139.2,1.08371708]
[1768300457836,1.36547327,3140.4,3139.2,1.08371708]
[1768300458137,0.96387995,3140.3,3139.2,1.08371708]
[1768300458332,0.96387995,3140.2,3139.2,1.08371708]
[1768300458532,0.96387995,3140.1,3139.2,1.08371708]
[1768300458733,0.96387995,3140.0,3139.2,1.08371708]
[1768300459030,0.13299054,3140.5,3139.2,1.08371708]
[1768300459233,1.36545477,3140.4,3139.2,1.08371708]
[1768300459433,0.96386694,3140.3,3139.2,1.08371708]
[1768300459731,0.96386694,3140.2,3139.2,1.08371708]
[1768300460036,0.96386694,3140.1,3139.2,1.08371708]
[1768300460236,0.96386694,3140.0,3139.2,1.08371708]
[1768300460538,0.13299054,3140.5,3139.2,1.08371708]
[1768300460736,1.36562943,3140.4,3139.2,1.08371708]
[1768300460937,0.96399021,3140.3,3139.2,1.08371708]
[1768300461138,0.96399021,3140.2,3139.2,1.08371708]
[1768300461329,0.96399021,3140.1,3139.2,1.08371708]
[1768300461529,0.96399021,3140.0,3139.2,1.08371708]
[1768300461731,0.15936,3140.7,3139.2,1.08371708]
[1768300461732,0.13299054,3140.3,3139.2,1.08371708]
[1768300461930,0.96414019,3140.2,3139.2,1.08371708]
[1768300462130,0.96414019,3140.1,3139.2,1.08371708]
[1768300462329,0.96414019,3140.0,3139.2,1.08371708]
[1768300462529,0.13299054,3140.3,3139.2,1.08371708]
[1768300462726,0.96415901,3140.2,3139.2,1.08371708]
[1768300462926,0.96415901,3140.1,3139.2,1.08371708]
[1768300463130,0.96415901,3140.0,3139.2,1.08371708]
[1768300463430,0.13299054,3140.3,3139.2,1.08371708]
[1768300463632,0.96428645,3140.2,3139.2,1.08371708]
[1768300463837,0.96428645,3140.1,3139.2,1.08371708]
[1768300464038,0.96428645,3140.0,3139.2,1.08371708]
[1768300464231,0.13299054,3140.3,3139.2,1.08371708]
[1768300464431,0.96429673,3140.2,3139.2,1.08371708]
[1768300464631,0.96429673,3140.1,3139.2,1.08371708]
[1768300464931,0.96429673,3140.0,3139.2,1.08371708]
[1768300465126,0.13299054,3140.3,3139.2,1.08371708]
[1768300465336,0.96431561,3140.2,3139.2,1.08371708]
[1768300465538,0.96431561,3140.1,3139.2,1.08371708]
[1768300465737,0.96431561,3140.0,3139.2,1.08371708]
[1768300466035,0.13299054,3140.3,3139.2,1.08371708]
[1768300466237,0.96431981,3140.2,3139.2,1.08371708]
[1768300466437,0.96431981,3140.1,3139.2,1.08371708]
[1768300466637,0.96431981,3140.0,3139.2,1.08371708]
[1768300466834,0.13299054,3140.3,3139.2,1.08371708]
[1768300467037,0.96434264,3140.2,3139.2,1.08371708]
[1768300467239,0.96434264,3140.1,3139.2,1.08371708]
[1768300467438,0.96434264,3140.0,3139.2,1.08371708]
[1768300467631,0.13299054,3140.3,3139.2,1.08371708]
[1768300467833,0.96436724,3140.2,3139.2,1.08371708]
[1768300468037,0.96436724,3140.1,3139.2,1.08371708]
[1768300468238,0.96436724,3140.0,3139.2,1.08371708]
[1768300468432,0.13299054,3140.3,3139.2,1.08371708]
[1768300468633,0.96440203,3140.2,3139.2,1.08371708]
[1768300468839,0.96440203,3140.1,3139.2,1.08371708]
[1768300469041,0.96440203,3140.0,3139.2,1.08371708]
[1768300469238,0.13299054,3140.3,3139.2,1.08371708]
[1768300469441,0.13299054,3140.1,3139.2,1.08371708]
[1768300469740,0.96438379,3140.0,3139.2,1.08371708]
[1768300469939,0.13299054,3140.1,3139.2,1.08371708]
[1768300470138,0.96438713,3140.0,3139.2,1.08371708]
[1768300470342,0.13299054,3140.1,3139.2,1.08371708]
[1768300470638,0.96439436,3140.0,3139.2,1.08371708]
[1768300470831,0.13299054,3140.1,3139.2,1.08371708]
[1768300471030,0.96439405,3140.0,3139.2,1.08371708]
[1768300471231,0.13299054,3140.1,3139.2,1.08371708]
[1768300471432,0.96439477,3140.0,3139.2,1.08371708]
[1768300471641,0.13299054,3140.1,3139.2,1.08371708]
[1768300471833,0.9644646,3140.0,3139.2,1.08371708]
[1768300472033,0.13299054,3140.1,3139.2,1.08371708]
[1768300472241,0.96446255,3140.0,3139.2,1.08371708]
[1768300472430,0.13299054,3140.1,3139.2,1.08371708]
[1768300472633,0.96447845,3140.0,3139.2,1.08371708]
[1768300472828,0.13299054,3140.1,3139.2,1.08371708]
[1768300473035,0.96446804,3140.0,3139.2,1.08371708]
[1768300473238,0.13299054,3140.1,3139.2,1.08371708]
[1768300473439,0.96432994,3140.0,3139.2,1.08371708]
[1768300473640,0.13299054,3140.1,3139.2,1.08371708]
[1768300473839,0.96430337,3140.0,3139.2,1.08371708]
[1768300474040,0.13299054,3140.1,3139.2,1.08371708]
[1768300474241,0.9643042,3140.0,3139.2,1.08371708]
[1768300474440,0.13299054,3140.1,3139.2,1.08371708]
[1768300474635,0.96430413,3140.0,3139.2,1.08371708]
[1768300474836,0.13299054,3140.1,3139.2,1.08371708]
[1768300475041,0.96364157,3140.0,3139.2,1.08371708]
[1768300475242,0.13299054,3140.1,3139.2,1.08371708]
[1768300475435,0.96364261,3140.0,3139.2,1.08371708]
[1768300475636,0.13299054,3140.1,3139.2,1.08371708]
[1768300475837,0.96364267,3140.0,3139.2,1.08371708]
[1768300476039,0.13299054,3140.1,3139.2,1.08371708]
[1768300476237,0.96364137,3140.0,3139.2,1.08371708]
[1768300476438,0.13299054,3140.1,3139.2,1.08371708]
[1768300476640,0.9636371,3140.0,3139.2,1.08371708]
[1768300476938,0.13299054,3140.1,3139.2,1.08371708]
[1768300477140,0.96363632,3140.0,3139.2,1.08371708]
[1768300477340,0.13299054,3140.1,3139.2,1.08371708]
[1768300477548,0.96363437,3140.0,3139.2,1.08371708]
[1768300477849,0.13299054,3140.1,3139.2,1.08371708]
[1768300478040,0.96367732,3140.0,3139.2,1.08371708]
[1768300478248,0.13299054,3140.1,3139.2,1.08371708]
[1768300478441,0.96379716,3140.0,3139.2,1.08371708]
[1768300478648,0.13299054,3140.1,3139.2,1.08371708]
[1768300478849,0.96379932,3140.0,3139.2,1.08371708]
[1768300479050,0.13299054,3140.1,3139.2,1.08371708]
[1768300479349,0.96379918,3140.0,3139.2,1.08371708]
[1768300479550,0.13299054,3140.1,3139.2,1.08371708]
[1768300479751,0.96380337,3140.0,3139.2,1.08371708]
[1768300479940,0.13299054,3140.1,3139.2,1.08371708]
[1768300480137,0.96383468,3140.0,3139.2,1.08371708]
[1768300480353,0.13299054,3140.1,3139.2,1.08371708]
[1768300480649,0.96383545,3140.0,3139.2,1.08371708]
[1768300480849,0.13299054,3140.1,3139.2,1.08371708]
[1768300481048,0.96383599,3140.0,3139.2,1.08371708]
[1768300481246,0.13299054,3140.1,3139.2,1.08371708]
[1768300481450,0.9638371,3140.0,3139.2,1.08371708]
[1768300481647,0.13299054,3140.1,3139.2,1.08371708]
[1768300481849,0.96383771,3140.0,3139.2,1.08371708]
[1768300482147,0.13299054,3140.1,3139.2,1.08371708]
[1768300482347,0.96383773,3140.0,3139.2,1.08371708]
[1768300482548,0.13299054,3140.1,3139.2,1.08371708]
[1768300482751,0.96384,3140.0,3139.2,1.08371708]
[1768300483051,0.13299054,3140.1,3139.0,0.00347205]
[1768300483354,0.96384002,3140.0,3139.2,1.08371708]
[1768300483544,0.13299054,3140.1,3139.2,1.08371708]
[1768300483746,0.96384095,3140.0,3139.2,1.08371708]
[1768300484046,0.13299054,3140.1,3139.2,1.08371708]
[1768300484244,0.9638409,3140.0,3139.2,1.08371708]
[1768300484553,0.13299054,3140.1,3139.2,1.08371708]
[1768300484852,0.96342119,3140.0,3139.2,1.08371708]
[1768300485045,0.13299054,3140.1,3139.2,1.08371708]
[1768300485246,0.96331037,3140.0,3139.2,1.08371708]
[1768300485446,0.13299054,3140.1,3139.2,1.08371708]
[1768300485755,0.96330027,3140.0,3139.2,1.08371708]
[1768300486048,0.13299054,3140.1,3139.2,1.08371708]
[1768300486352,0.96329904,3140.0,3139.2,1.08371708]
[1768300486651,0.13299054,3140.1,3139.2,1.08371708]
[1768300486852,0.96330062,3140.0,3139.2,1.08371708]
[1768300487149,0.13299054,3140.1,3139.2,1.08371708]
[1768300487351,0.96342201,3140.0,3139.2,1.08371708]
[1768300487544,0.13299054,3140.1,3139.2,1.08371708]
[1768300487845,0.96340147,3140.0,3139.2,1.08371708]
[1768300488044,0.13299054,3140.1,3139.2,1.08371708]
[1768300488252,0.96286294,3140.0,3139.2,1.08371708]
[1768300488450,0.13299054,3140.1,3139.2,1.08371708]
[1768300488651,0.96286473,3140.0,3139.2,1.08371708]
[1768300488850,1.3857335,3140.6,3139.2,1.08371708]
[1768300489051,1.36454126,3140.5,3139.4,1.08371708]
[1768300489246,1.36454126,3140.4,3139.4,1.08371708]
[1768300489445,1.36454197,3140.3,3139.4,1.08371708]
[1768300489646,0.96286609,3140.2,3139.4,1.08371708]
[1768300489851,0.96286609,3140.1,3139.4,1.08371708]
[1768300490047,0.96286609,3140.0,3139.4,1.08371708]
[1768300490250,0.30201642,3140.6,3139.4,1.08371708]
[1768300490451,1.36460279,3140.5,3139.4,1.08371708]
[1768300490646,1.36460279,3140.4,3139.4,1.08371708]
[1768300490846,1.36460279,3140.3,3139.4,1.08371708]
[1768300491046,0.96291005,3140.2,3139.4,1.08371708]
[1768300491251,0.96291005,3140.1,3139.4,1.08371708]
[1768300491454,0.96291005,3140.0,3139.4,1.08371708]
[1768300491754,0.30201642,3140.6,3139.4,1.08371708]
[1768300491949,1.36460807,3140.5,3139.4,1.08371708]
[1768300492149,1.36460807,3140.4,3139.4,1.08371708]
[1768300492350,1.36460807,3140.3,3139.4,1.08371708]
[1768300492546,0.96291373,3140.2,3139.4,1.08371708]
[1768300492747,0.96291373,3140.1,3139.4,1.08371708]
[1768300492953,0.96291373,3140.0,3139.4,1.08371708]
[1768300493153,0.30201642,3140.6,3139.4,1.08371708]
[1768300493453,1.36460444,3140.5,3139.4,1.08371708]
[1768300493649,1.36460444,3140.4,3139.4,1.08371708]
[1768300493851,1.36460444,3140.3,3139.4,1.08371708]
[1768300494049,0.96291166,3140.2,3139.4,1.08371708]
[1768300494250,0.96291166,3140.1,3139.4,1.08371708]
[1768300494451,0.96291166,3140.0,3139.4,1.08371708]
[1768300494651,0.30201642,3140.6,3139.4,1.08371708]
[1768300494953,1.36459981,3140.5,3139.4,1.08371708]
[1768300495155,1.36459981,3140.4,3139.4,1.08371708]
[1768300495355,1.36459981,3140.3,3139.6,1.08344227]
[1768300495556,0.96290829,3140.2,3139.6,1.08344227]
[1768300495757,0.96290829,3140.1,3139.6,1.08344227]
[1768300495963,0.96290829,3140.0,3139.6,1.08344227]
[1768300496261,1.08344227,3140.5,3139.6,1.08344227]
[1768300496456,1.36459939,3140.4,3139.6,1.08344227]
[1768300496650,1.36459939,3140.3,3139.6,1.08344227]
[1768300496849,0.96290791,3140.2,3139.6,1.08344227]
[1768300497051,0.96290791,3140.1,3139.6,1.08344227]
[1768300497246,0.96290791,3140.0,3139.6,1.08344227]
[1768300497459,1.22609869,3140.5,3139.6,1.08344227]
[1768300497657,1.3645971,3140.4,3139.6,1.08344227]
[1768300497858,1.3645971,3140.3,3139.6,1.08344227]
[1768300498061,0.96290632,3140.2,3139.6,1.08344227]
[1768300498268,0.96290632,3140.2,3139.4,1.08344227]
[1768300499365,1.08344227,3140.1,3139.0,0.00347205]
[1768300499566,1.08344227,3139.9,3139.1,1.08344227]
[1768300500657,1.22609869,3140.1,3139.1,1.08344227]
[1768300500858,0.9630739,3140.0,3139.1,1.08344227]
[1768300501058,1.22609869,3140.1,3139.1,1.08344227]
[1768300501263,0.96312698,3140.0,3139.1,1.08344227]
[1768300501457,1.22609869,3140.1,3139.1,1.08344227]
[1768300501660,0.9631627,3140.0,3139.1,1.08344227]
[1768300501861,1.22609869,3140.1,3139.1,1.08344227]
[1768300502154,0.96316358,3140.0,3139.1,1.08344227]
[1768300502357,1.22609869,3140.1,3139.1,1.08344227]
[1768300502559,0.96316338,3140.0,3139.3,1.08344227]
[1768300502766,1.08344227,3140.3,3139.3,1.08344227]
[1768300502966,0.96316776,3140.2,3139.3,1.08344227]
[1768300503167,0.96316776,3140.1,3139.3,1.08344227]
[1768300503367,0.96316776,3140.0,3139.3,1.08344227]
[1768300503568,1.08344227,3140.3,3139.3,1.08344227]
[1768300503769,0.96325023,3140.2,3139.3,1.08344227]
[1768300503966,0.96325023,3140.1,3139.3,1.08344227]
[1768300504266,0.96325023,3140.0,3139.3,1.08344227]
[1768300504460,1.08344227,3140.3,3139.3,1.08344227]
[1768300504660,0.96326888,3140.2,3139.3,1.08344227]
[1768300504861,0.96326888,3140.1,3139.3,1.08344227]
[1768300505061,0.96326888,3140.0,3139.3,1.08344227]
[1768300505359,1.08344227,3140.3,3139.3,1.08344227]
[1768300505560,0.96365832,3140.2,3139.3,1.08344227]
[1768300505859,0.96365832,3140.1,3139.3,1.08344227]
[1768300506055,0.96365832,3140.0,3139.3,1.08344227]
[1768300506259,1.08344227,3140.3,3139.3,1.08344227]
[1768300506457,0.96366208,3140.2,3139.3,1.08344227]
[1768300506661,0.96366208,3140.1,3139.3,1.08344227]
[1768300506957,0.96366208,3140.0,3139.3,1.08344227]
[1768300509471,1.08344227,3140.1,3139.3,1.08344227]
[1768300509673,0.96364877,3140.0,3139.3,1.08344227]
[1768300509973,0.14497804,3140.2,3139.3,1.08344227]
[1768300510172,0.96364727,3140.1,3139.3,1.08344227]
[1768300510366,0.96364727,3140.0,3139.3,1.08344227]
[1768300510561,0.14497804,3140.2,3139.5,1.08344227]
[1768300510866,0.96365033,3140.1,3139.5,1.08344227]
[1768300511066,0.96365033,3140.0,3139.5,1.08344227]
[1768300511271,0.14497804,3140.2,3139.5,1.08344227]
[1768300511571,0.96365178,3140.1,3139.5,1.08344227]
[1768300511771,0.96365178,3140.0,3139.5,1.08344227]
[1768300511968,1.08344227,3140.3,3139.5,1.08344227]
[1768300512168,0.96365107,3140.2,3139.5,1.08344227]
[1768300512370,0.96365107,3140.1,3139.3,1.08344227]
[1768300512569,0.96365107,3140.0,3139.3,1.08344227]
[1768300512872,1.08344227,3140.3,3139.3,1.08344227]
[1768300513071,0.96365017,3140.2,3139.3,1.08344227]
[1768300513274,0.96365017,3140.1,3139.0,0.00347205]
[1768300513571,0.96365017,3140.0,3139.4,1.08344227]
[1768300513769,1.08344227,3140.3,3139.4,1.08344227]
[1768300513971,0.96364897,3140.2,3139.4,1.08344227]
[1768300514173,0.96364897,3140.1,3139.4,1.08344227]
[1768300514362,0.96364897,3140.0,3139.4,1.08344227]
[1768300514563,1.08344227,3140.3,3139.4,1.08344227]
[1768300514764,0.96364996,3140.2,3139.4,1.08344227]
[1768300514974,0.96364996,3140.1,3139.4,1.08344227]
[1768300515166,0.96364996,3140.0,3139.4,1.08344227]
[1768300515466,1.08344227,3140.2,3139.4,1.08344227]
[1768300515665,0.96326738,3140.1,3139.4,1.08344227]
[1768300515866,0.96326738,3140.0,3139.4,1.08344227]
[1768300516062,1.08344227,3140.3,3139.4,1.08344227]
[1768300516271,0.96326024,3140.2,3139.4,1.08344227]
[1768300516472,0.96326024,3140.1,3139.4,1.08344227]
[1768300516766,0.96326024,3140.0,3139.4,1.08344227]
[1768300516963,1.08344227,3140.3,3139.4,1.08344227]
[1768300517169,0.96325884,3140.2,3139.4,1.08344227]
[1768300517377,0.96325884,3140.1,3139.4,1.08344227]
[1768300517576,1.08344227,3140.3,3139.4,1.08344227]
[1768300517577,0.96325884,3140.0,3139.4,1.08344227]
[1768300517779,1.08344227,3140.3,3139.4,1.08344227]
[1768300517975,0.9632366,3140.2,3139.4,1.08344227]
[1768300518274,0.9632366,3140.1,3139.4,1.08344227]
[1768300518476,0.9632366,3140.0,3139.4,1.08344227]
[1768300518675,1.08344227,3140.3,3139.4,1.08344227]
[1768300518876,0.96316319,3140.2,3139.4,1.08344227]
[1768300519069,0.96316319,3140.1,3139.4,1.08344227]
[1768300519269,0.96316319,3140.0,3139.0,0.00347205]
[1768300519476,1.08344227,3140.3,3139.3,1.08344227]
[1768300519772,1.08344227,3139.9,3139.0,0.00347205]
[1768300520674,0.13992286,3139.8,3139.0,0.00347205]
[1768300520978,0.96299842,3139.7,3139.0,1.08611232]
[1768300521272,0.29930286,3140.2,3139.4,1.08344227]
[1768300521470,1.36406651,3140.1,3139.4,1.08344227]
[1768300521670,0.96264565,3140.0,3139.4,1.08344227]
[1768300521871,0.96264565,3139.9,3139.4,1.08344227]
[1768300522075,0.96264565,3139.8,3139.4,1.08344227]
[1768300522276,1.08344227,3140.3,3139.4,1.08344227]
[1768300522476,1.36197787,3140.2,3139.4,1.08344227]
[1768300522678,1.36197787,3140.1,3139.4,1.08344227]
[1768300522876,0.95838682,3140.0,3139.4,1.08344227]
[1768300523066,0.95838682,3139.9,3139.4,1.08344227]
[1768300523280,0.95838682,3139.8,3139.4,1.08344227]
[1768300523475,1.08344227,3140.3,3139.4,1.08344227]
[1768300523677,1.36178972,3140.2,3139.4,1.08344227]
[1768300523877,1.36178972,3140.1,3139.4,1.08344227]
[1768300524076,0.95825428,3140.0,3139.4,1.08344227]
[1768300524375,0.95825428,3139.9,3139.4,1.08344227]
[1768300524678,1.08344227,3140.2,3139.0,0.00267005]
[1768300524679,0.13992286,3140.4,3139.6,1.08344227]
[1768300525776,1.08344227,3140.3,3139.4,1.08344227]
[1768300527579,1.08344227,3140.1,3139.2,1.08344227]
[1768300527779,1.08344227,3139.9,3139.0,0.00267005]
[1768300528278,0.13992286,3140.2,3139.0,0.00267005]
[1768300528478,1.08344227,3139.9,3139.0,0.00267005]
[1768300528980,1.08344227,3139.9,3139.1,1.08344227]
[1768300544782,0.13992286,3140.2,3139.1,1.08344227]
[1768300544983,1.08344227,3140.0,3139.1,1.08344227]
[1768300547783,1.08344227,3140.0,3139.0,0.00267005]
[1768300547982,1.08344227,3140.1,3139.2,1.08344227]
[1768300548181,0.95198699,3140.0,3139.2,1.08344227]
[1768300548377,1.08344227,3140.1,3139.2,1.08344227]
[1768300548584,0.95199976,3140.0,3139.2,1.08344227]
[1768300548783,1.08344227,3140.1,3139.2,1.08344227]
[1768300549083,0.95199964,3140.0,3139.2,1.08344227]
[1768300549283,1.08344227,3140.1,3139.2,1.08344227]
[1768300549486,0.95201372,3140.0,3139.2,1.08344227]
[1768300549685,1.08344227,3139.9,3139.0,1.08611232]
[1768300551281,0.13992286,3140.2,3139.0,1.08611232]
[1768300551487,1.08344227,3140.0,3139.0,1.08611232]
[1768300551686,0.95200193,3139.9,3139.0,1.08611232]
[1768300551886,1.08344227,3140.0,3139.0,1.08611232]
[1768300552188,0.95199949,3139.9,3139.0,1.08611232]
[1768300552381,1.08344227,3140.0,3139.0,1.08611232]
[1768300552586,0.95206168,3139.9,3139.0,1.08611232]
[1768300552785,1.08344227,3140.0,3139.0,1.08611232]
[1768300552985,0.95206323,3139.9,3139.0,1.08611232]
[1768300553183,1.08344227,3140.0,3139.0,1.08611232]
[1768300553386,0.95216002,3139.9,3139.0,1.08611232]
[1768300553588,1.08344227,3140.0,3139.0,1.08611232]
[1768300553777,0.95216006,3139.9,3139.0,1.08611232]
[1768300553984,1.08344227,3140.0,3139.0,1.08611232]
[1768300554179,0.95216002,3139.9,3139.0,1.08611232]
[1768300554392,1.08344227,3140.0,3139.0,1.08611232]
[1768300554690,0.95227602,3139.9,3139.0,1.08611232]
[1768300554889,1.08344227,3140.0,3139.0,1.08611232]
[1768300555092,0.95227521,3139.9,3139.0,1.08611232]
[1768300555290,1.08344227,3140.0,3139.0,1.08611232]
[1768300555490,0.95226775,3139.9,3139.0,1.08611232]
[1768300555694,1.08344227,3140.0,3139.0,1.08611232]
[1768300555887,0.9522681,3139.9,3139.0,1.08611232]
[1768300556194,0.13992286,3140.2,3139.0,1.08611232]
[1768300556396,1.08344227,3140.0,3139.0,1.08611232]
[1768300556694,0.952262,3139.9,3139.0,1.08611232]
[1768300557297,0.952262,3139.9,3139.0,0.00267005]
[1768300557493,1.22366756,3140.2,3139.0,0.00267005]
[1768300557694,0.95226381,3140.1,3139.0,0.00267005]
[1768300557995,0.95226381,3140.0,3139.0,0.00267005]
[1768300558187,0.95226381,3139.9,3139.0,0.00267005]
[1768300558388,1.22366756,3140.2,3139.0,0.00267005]
[1768300558590,0.95226635,3140.1,3139.0,0.00267005]
[1768300558882,0.95226635,3140.0,3139.0,0.00267005]
[1768300559082,0.95226635,3139.9,3139.0,0.00267005]
[1768300559292,1.22366756,3140.2,3139.0,0.00267005]
[1768300559491,0.95226097,3140.1,3139.0,0.00267005]
[1768300559693,0.95226097,3140.0,3139.0,0.00267005]
[1768300559895,0.95226097,3139.9,3139.0,0.00267005]
[1768300560094,1.22366756,3140.2,3139.0,0.00267005]
[1768300560395,0.95226002,3140.1,3139.0,0.00267005]
[1768300560595,0.95226002,3140.0,3139.0,0.00267005]
[1768300560796,0.95226002,3139.9,3139.0,0.00267005]
[1768300561003,0.13992286,3140.2,3139.0,0.00267005]
[1768300561202,0.95226449,3140.1,3139.0,0.00267005]
[1768300561401,0.95226449,3140.0,3139.0,0.00267005]
[1768300561604,0.13992286,3140.2,3139.0,0.00267005]
[1768300561902,0.95228958,3140.1,3139.0,0.00267005]
[1768300562102,0.95228958,3140.0,3139.0,0.00267005]
[1768300562308,0.13992286,3140.2,3139.0,0.00267005]
[1768300562602,0.95229601,3140.1,3139.0,0.00267005]
[1768300562802,0.95229601,3140.0,3139.0,0.00267005]
[1768300563103,0.13992286,3140.2,3139.0,0.00267005]
[1768300563303,0.95230305,3140.1,3139.0,0.00267005]
[1768300563504,0.95230305,3140.0,3139.0,0.00267005]
[1768300563705,0.13992286,3140.2,3139.0,0.00267005]
[1768300564003,0.95230249,3140.1,3139.0,0.00267005]
[1768300564205,0.95230249,3140.0,3139.0,0.00267005]
[1768300564403,0.95230249,3139.9,3139.0,0.00267005]
[1768300564599,0.13992286,3140.2,3139.0,0.00267005]
[1768300564796,0.95230909,3140.1,3139.0,0.00267005]
[1768300564999,0.95230909,3140.0,3139.0,0.00267005]
[1768300565203,0.13992286,3140.2,3139.0,0.00267005]
[1768300565509,0.95106922,3140.1,3139.0,0.00267005]
[1768300565707,0.95106922,3140.0,3139.0,0.00267005]
[1768300565907,0.13992286,3140.2,3139.0,0.00267005]
[1768300566207,0.95107077,3140.1,3139.0,0.00267005]
[1768300566405,0.95107077,3140.0,3139.0,0.00267005]
[1768300566602,0.95107077,3139.9,3139.0,0.00267005]
[1768300566908,0.13992286,3140.2,3139.0,1.08641475]
[1768300567206,0.95109546,3140.1,3139.0,1.08641475]
[1768300567506,0.13992286,3140.2,3139.0,1.08641475]
[1768300567507,0.95109546,3140.0,3139.0,1.08641475]
[1768300567707,0.13992286,3140.2,3139.0,1.08641475]
[1768300567907,0.95110463,3140.1,3139.0,1.08641475]
[1768300568106,0.95110463,3140.0,3139.0,1.08641475]
[1768300568307,0.13992286,3140.2,3139.0,1.08641475]
[1768300568506,0.95111311,3140.1,3139.0,1.08641475]
[1768300568707,0.95111311,3140.0,3139.0,1.08641475]
[1768300568907,0.13992286,3140.2,3139.0,1.08641475]
[1768300569108,0.95111213,3140.1,3139.0,1.08641475]
[1768300569306,0.95111213,3140.0,3139.0,1.08641475]
[1768300569510,0.13992286,3140.2,3139.0,1.08641475]
[1768300569806,0.9511715,3140.1,3139.0,1.08641475]
[1768300570107,0.9511715,3140.0,3139.0,1.08641475]
[1768300570297,0.13992286,3140.2,3139.0,1.08641475]
[1768300570503,0.95117309,3140.1,3139.0,1.08641475]
[1768300570801,0.95117309,3140.0,3139.0,1.08641475]
[1768300571002,0.13992286,3140.2,3139.0,1.08641475]
[1768300571202,0.95117212,3140.1,3139.0,1.08641475]
[1768300571503,0.95117212,3140.0,3139.0,1.08641475]
[1768300571703,0.13992286,3140.2,3139.0,1.08641475]
[1768300571896,0.95118139,3140.1,3139.0,1.08641475]
[1768300572101,0.95118139,3140.0,3139.0,1.08641475]
[1768300572408,0.13992286,3140.2,3139.0,1.08641475]
[1768300572610,0.95119142,3140.1,3139.0,1.08641475]
[1768300572802,0.95119142,3140.0,3139.0,1.08641475]
[1768300573002,0.13992286,3140.2,3139.0,1.08641475]
[1768300573209,0.95119164,3140.1,3139.0,1.08641475]
[1768300573405,0.95119164,3140.0,3139.0,1.08641475]
[1768300573607,0.13992286,3140.2,3139.0,1.08641475]
[1768300573806,0.95120296,3140.1,3139.0,1.08641475]
[1768300574009,0.95120296,3140.0,3139.0,1.08641475]
[1768300574206,0.13992286,3140.2,3139.0,1.08641475]
[1768300574402,0.95121365,3140.1,3139.0,1.08641475]
[1768300574598,0.95121365,3140.0,3139.0,1.08641475]
[1768300574798,0.13992286,3140.2,3139.0,1.08641475]
[1768300575011,0.95121269,3140.1,3139.0,1.08641475]
[1768300575309,0.95121269,3140.0,3139.0,1.08641475]
[1768300575509,0.13992286,3140.2,3139.0,1.08641475]
[1768300575710,0.95122707,3140.1,3139.0,1.08641475]
[1768300575909,0.95122707,3140.0,3139.0,1.08641475]
[1768300576110,0.13992286,3140.2,3139.0,1.08641475]
[1768300576304,0.95123844,3140.1,3139.0,1.08641475]
[1768300576504,0.95123844,3140.0,3139.0,1.08641475]
[1768300576706,0.13992286,3140.2,3139.0,1.08641475]
[1768300576909,0.95123639,3140.1,3139.0,1.08641475]
[1768300577205,0.14589771,3140.6,3139.4,1.0837447]
[1768300577403,1.35496594,3140.5,3139.4,1.0837447]
[1768300577612,1.35496594,3140.4,3139.4,1.0837447]
[1768300577812,0.95119217,3140.3,3139.4,1.0837447]
[1768300578010,0.95119217,3140.2,3139.4,1.0837447]